[Event "Titled Tuesday Blitz August 22 Early 2023"]
[White "Kosakowski, Jakub"]
[Black "So, Wesley"]
[WhiteFideId "1185080"]
[BlackFideId "5202213"]
[WhiteElo "2819"]
[BlackElo "3088"]
[Result "0-1"]
[Round "11"]
[TimeControl "180+1"]
[Date "2023.08.22"]
[WhiteClock "0:00:05"]
[BlackClock "0:00:21"]
[Board "15"]

1. d4 {[%clk 0:02:59]}  d5 {[%clk 0:02:59]} 2. Nf3 {[%clk 0:02:59]}  e6 {[%clk 0:02:59]} 3. e3 {[%clk 0:02:59]}  Nf6 {[%clk 0:02:59]} 4. Bd3 {[%clk 0:02:58]}  c5 {[%clk 0:02:57]} 5. b3 {[%clk 0:02:58]}  b6 {[%clk 0:02:48]} 6. O-O {[%clk 0:02:56]}  Bb7 {[%clk 0:02:48]} 7. Bb2 {[%clk 0:02:56]}  Nc6 {[%clk 0:02:47]} 8. Nbd2 {[%clk 0:02:54]}  Rc8 {[%clk 0:02:46]} 9. dxc5 {[%clk 0:02:51]}  Bxc5 {[%clk 0:02:47]} 10. c4 {[%clk 0:02:51]}  d4 {[%clk 0:02:42]} 11. exd4 {[%clk 0:02:41]}  Nxd4 {[%clk 0:02:43]} 12. Nxd4 {[%clk 0:02:42]}  Bxd4 {[%clk 0:02:38]} 13. Bxd4 {[%clk 0:02:42]}  Qxd4 {[%clk 0:02:39]} 14. Nf3 {[%clk 0:02:42]}  Qf4 {[%clk 0:02:32]} 15. Be2 {[%clk 0:02:39]}  Ke7 {[%clk 0:02:25]} 16. Qd4 {[%clk 0:02:28]}  Qxd4 {[%clk 0:02:13]} 17. Nxd4 {[%clk 0:02:28]}  Rhd8 {[%clk 0:02:13]} 18. Rad1 {[%clk 0:02:29]}  Rd7 {[%clk 0:02:00]} 19. Nb5 {[%clk 0:01:53]}  a6 {[%clk 0:01:49]} 20. Rxd7+ {[%clk 0:01:52]}  Nxd7 {[%clk 0:01:50]} 21. Nd4 {[%clk 0:01:52]}  Nc5 {[%clk 0:01:35]} 22. f3 {[%clk 0:01:48]}  Rd8 {[%clk 0:01:31]} 23. Rd1 {[%clk 0:01:47]}  f5 {[%clk 0:01:18]} 24. Kf2 {[%clk 0:01:43]}  Kf6 {[%clk 0:01:16]} 25. b4 {[%clk 0:00:48]}  Na4 {[%clk 0:01:16]} 26. Rd3 {[%clk 0:00:47]}  a5 {[%clk 0:00:46]} 27. a3 {[%clk 0:00:42]}  Ba6 {[%clk 0:00:35]} 28. Rd2 {[%clk 0:00:28]}  Nc3 {[%clk 0:00:29]} 29. Bf1 {[%clk 0:00:18]}  Nb1 {[%clk 0:00:28]} 30. Rb2 {[%clk 0:00:15]}  Rxd4 {[%clk 0:00:22]} 31. Rxb1 {[%clk 0:00:14]}  Bxc4 {[%clk 0:00:22]} 32. Bxc4 {[%clk 0:00:12]}  Rxc4 {[%clk 0:00:23]} 33. bxa5 {[%clk 0:00:12]}  bxa5 {[%clk 0:00:24]} 34. Rb5 {[%clk 0:00:12]}  Ra4 {[%clk 0:00:23]} 35. Rb3 {[%clk 0:00:12]}  g5 {[%clk 0:00:21]} 36. g3 {[%clk 0:00:10]}  h5 {[%clk 0:00:22]} 37. Ke3 {[%clk 0:00:11]}  h4 {[%clk 0:00:22]} 38. f4 {[%clk 0:00:10]}  Re4+ {[%clk 0:00:21]} 39. Kf3 {[%clk 0:00:10]}  g4+ {[%clk 0:00:20]} 40. Kf2 {[%clk 0:00:10]}  h3 {[%clk 0:00:20]} 41. Rb5 {[%clk 0:00:10]}  Ra4 {[%clk 0:00:20]} 42. Rb3 {[%clk 0:00:11]}  Rc4 {[%clk 0:00:21]} 43. Rb5 {[%clk 0:00:10]}  a4 {[%clk 0:00:20]} 44. Ra5 {[%clk 0:00:10]}  Rc2+ {[%clk 0:00:20]} 45. Kg1 {[%clk 0:00:10]}  Rg2+ {[%clk 0:00:20]} 46. Kh1 {[%clk 0:00:05]}  Ra2 {[%clk 0:00:21]} 0-1


[Site "https://www.chess.com"]

[Event "Titled Tuesday Blitz August 22 Early 2023"]
[White "Cordova, Emilio"]
[Black "Wagner, Dennis"]
[WhiteFideId "3801497"]
[BlackFideId "24650684"]
[WhiteElo "2879"]
[BlackElo "2754"]
[Result "1/2-1/2"]
[Round "11"]
[TimeControl "180+1"]
[Date "2023.08.22"]
[WhiteClock "0:01:32"]
[BlackClock "0:00:09"]
[Board "20"]

1. Nf3 {[%clk 0:02:44]}  Nf6 {[%clk 0:02:59]} 2. c4 {[%clk 0:02:44]}  c5 {[%clk 0:02:59]} 3. g3 {[%clk 0:02:44]}  b6 {[%clk 0:02:51]} 4. Bg2 {[%clk 0:02:45]}  Bb7 {[%clk 0:02:51]} 5. O-O {[%clk 0:02:46]}  e6 {[%clk 0:02:52]} 6. Nc3 {[%clk 0:02:45]}  Be7 {[%clk 0:02:52]} 7. d4 {[%clk 0:02:45]}  cxd4 {[%clk 0:02:53]} 8. Qxd4 {[%clk 0:02:45]}  O-O {[%clk 0:02:52]} 9. Bg5 {[%clk 0:02:45]}  h6 {[%clk 0:02:32]} 10. Bxf6 {[%clk 0:02:43]}  Bxf6 {[%clk 0:02:32]} 11. Qf4 {[%clk 0:02:43]}  Bxc3 {[%clk 0:02:29]} 12. bxc3 {[%clk 0:02:42]}  Na6 {[%clk 0:02:23]} 13. Rfd1 {[%clk 0:02:42]}  Nc5 {[%clk 0:02:23]} 14. Nd4 {[%clk 0:02:37]}  Bxg2 {[%clk 0:02:20]} 15. Kxg2 {[%clk 0:02:38]}  Qe7 {[%clk 0:01:56]} 16. Nb5 {[%clk 0:02:26]}  f5 {[%clk 0:01:14]} 17. f3 {[%clk 0:02:19]}  g5 {[%clk 0:00:57]} 18. Qd6 {[%clk 0:02:19]}  Qxd6 {[%clk 0:00:57]} 19. Nxd6 {[%clk 0:02:18]}  Kg7 {[%clk 0:00:51]} 20. Rd4 {[%clk 0:02:09]}  Kf6 {[%clk 0:00:49]} 21. Rad1 {[%clk 0:02:09]}  Rh8 {[%clk 0:00:30]} 22. e4 {[%clk 0:02:08]}  e5 {[%clk 0:00:20]} 23. Rd5 {[%clk 0:02:06]}  f4 {[%clk 0:00:20]} 24. Nf5 {[%clk 0:02:02]}  h5 {[%clk 0:00:15]} 25. Rd6+ {[%clk 0:02:00]}  Kf7 {[%clk 0:00:16]} 26. R1d5 {[%clk 0:01:59]}  Rae8 {[%clk 0:00:15]} 27. a4 {[%clk 0:01:54]}  g4 {[%clk 0:00:13]} 28. a5 {[%clk 0:01:54]}  gxf3+ {[%clk 0:00:13]} 29. Kxf3 {[%clk 0:01:55]}  fxg3 {[%clk 0:00:12]} 30. hxg3 {[%clk 0:01:55]}  Ne6 {[%clk 0:00:12]} 31. axb6 {[%clk 0:01:54]}  axb6 {[%clk 0:00:12]} 32. Rxd7+ {[%clk 0:01:54]}  Kg6 {[%clk 0:00:12]} 33. R5d6 {[%clk 0:01:53]}  Kg5 {[%clk 0:00:09]} 34. Rxb6 {[%clk 0:01:51]}  Rhf8 {[%clk 0:00:04]} 35. Ke3 {[%clk 0:01:50]}  Kg4 {[%clk 0:00:04]} 36. Rdd6 {[%clk 0:01:47]}  Ng5 {[%clk 0:00:04]} 37. Rg6 {[%clk 0:01:47]}  Rc8 {[%clk 0:00:03]} 38. Rb7 {[%clk 0:01:40]}  Rxc4 {[%clk 0:00:03]} 39. Rbg7 {[%clk 0:01:39]}  Rxe4+ {[%clk 0:00:03]} 40. Kd3 {[%clk 0:01:37]}  Rxf5 {[%clk 0:00:03]} 41. Rxg5+ {[%clk 0:01:37]}  Rxg5 {[%clk 0:00:04]} 42. Rxg5+ {[%clk 0:01:37]}  Kxg5 {[%clk 0:00:05]} 43. Kxe4 {[%clk 0:01:38]}  Kg4 {[%clk 0:00:06]} 44. c4 {[%clk 0:01:37]}  Kxg3 {[%clk 0:00:06]} 45. c5 {[%clk 0:01:38]}  h4 {[%clk 0:00:07]} 46. c6 {[%clk 0:01:39]}  h3 {[%clk 0:00:08]} 47. c7 {[%clk 0:01:39]}  h2 {[%clk 0:00:08]} 48. c8=Q {[%clk 0:01:39]}  h1=Q+ {[%clk 0:00:09]} 49. Kxe5 {[%clk 0:01:32]}  Qe1+ {[%clk 0:00:09]} 1/2-1/2


[Site "https://www.chess.com"]

[Event "Titled Tuesday Blitz August 22 Early 2023"]
[White "Karthik Rajaa"]
[Black "Ilamparthi A R"]
[WhiteFideId "25035215"]
[BlackFideId "45015775"]
[WhiteElo "2718"]
[BlackElo "2874"]
[Result "0-1"]
[Round "11"]
[TimeControl "180+1"]
[Date "2023.08.22"]
[WhiteClock "0:00:13"]
[BlackClock "0:01:46"]
[Board "21"]

1. Nf3 {[%clk 0:03:00]}  Nf6 {[%clk 0:02:59]} 2. c4 {[%clk 0:03:01]}  g6 {[%clk 0:02:59]} 3. Nc3 {[%clk 0:03:00]}  Bg7 {[%clk 0:03:00]} 4. g3 {[%clk 0:03:00]}  Kf8 {[%clk 0:03:01]} 5. Bg2 {[%clk 0:03:00]}  d6 {[%clk 0:03:01]} 6. d4 {[%clk 0:02:59]}  h6 {[%clk 0:03:01]} 7. O-O {[%clk 0:02:58]}  Kg8 {[%clk 0:03:02]} 8. e4 {[%clk 0:02:58]}  Kh7 {[%clk 0:03:01]} 9. e5 {[%clk 0:02:59]}  Nfd7 {[%clk 0:03:01]} 10. Qe2 {[%clk 0:02:48]}  c5 {[%clk 0:02:59]} 11. Be3 {[%clk 0:02:31]}  cxd4 {[%clk 0:02:55]} 12. Bxd4 {[%clk 0:02:28]}  Nc6 {[%clk 0:02:55]} 13. Rad1 {[%clk 0:02:18]}  Nxd4 {[%clk 0:02:50]} 14. Nxd4 {[%clk 0:02:18]}  Nxe5 {[%clk 0:02:50]} 15. h3 {[%clk 0:02:14]}  Nc6 {[%clk 0:02:47]} 16. Nxc6 {[%clk 0:01:45]}  bxc6 {[%clk 0:02:48]} 17. Bxc6 {[%clk 0:01:43]}  Bxh3 {[%clk 0:02:47]} 18. Rfe1 {[%clk 0:01:44]}  Rb8 {[%clk 0:02:46]} 19. Qf3 {[%clk 0:01:37]}  Rxb2 {[%clk 0:02:33]} 20. Nd5 {[%clk 0:01:18]}  e6 {[%clk 0:02:31]} 21. Ne3 {[%clk 0:01:14]}  h5 {[%clk 0:02:12]} 22. Qxf7 {[%clk 0:01:07]}  Rf8 {[%clk 0:02:09]} 23. Qd7 {[%clk 0:01:00]}  Qg5 {[%clk 0:02:05]} 24. Rf1 {[%clk 0:00:30]}  Rfxf2 {[%clk 0:01:56]} 25. Rxf2 {[%clk 0:00:13]}  Qxe3 {[%clk 0:01:46]} 0-1


[Site "https://www.chess.com"]

[Event "Titled Tuesday Blitz August 22 Early 2023"]
[White "Yeletsky, Ivan"]
[Black "Dehtiarov, Roman"]
[WhiteFideId "24180327"]
[BlackFideId "14186640"]
[WhiteElo "2870"]
[BlackElo "2719"]
[Result "1-0"]
[Round "11"]
[TimeControl "180+1"]
[Date "2023.08.22"]
[WhiteClock "0:00:10"]
[BlackClock "0:00:06"]
[Board "22"]

1. e4 {[%clk 0:03:00]}  e5 {[%clk 0:03:00]} 2. Nf3 {[%clk 0:03:00]}  Nc6 {[%clk 0:03:01]} 3. Bb5 {[%clk 0:02:58]}  a6 {[%clk 0:03:01]} 4. Ba4 {[%clk 0:02:59]}  Nf6 {[%clk 0:03:01]} 5. O-O {[%clk 0:02:59]}  Be7 {[%clk 0:03:02]} 6. Bxc6 {[%clk 0:02:58]}  dxc6 {[%clk 0:03:02]} 7. d3 {[%clk 0:02:58]}  Nd7 {[%clk 0:03:02]} 8. Nc3 {[%clk 0:02:57]}  O-O {[%clk 0:03:02]} 9. Be3 {[%clk 0:02:58]}  c5 {[%clk 0:03:02]} 10. Nd2 {[%clk 0:02:58]}  f6 {[%clk 0:03:02]} 11. f4 {[%clk 0:02:55]}  Bd6 {[%clk 0:02:57]} 12. Nc4 {[%clk 0:02:53]}  Qe7 {[%clk 0:02:57]} 13. Nd5 {[%clk 0:02:53]}  Qd8 {[%clk 0:02:50]} 14. f5 {[%clk 0:02:18]}  b5 {[%clk 0:02:39]} 15. Nd2 {[%clk 0:01:41]}  Bb7 {[%clk 0:02:37]} 16. c4 {[%clk 0:01:39]}  Nb6 {[%clk 0:02:31]} 17. Rf3 {[%clk 0:01:31]}  c6 {[%clk 0:02:29]} 18. Nc3 {[%clk 0:01:14]}  Be7 {[%clk 0:02:29]} 19. Bf2 {[%clk 0:01:04]}  Qd7 {[%clk 0:02:29]} 20. Rh3 {[%clk 0:01:00]}  Rfd8 {[%clk 0:02:23]} 21. Qh5 {[%clk 0:01:00]}  h6 {[%clk 0:02:23]} 22. b3 {[%clk 0:00:52]}  Bf8 {[%clk 0:02:20]} 23. Qg4 {[%clk 0:00:44]}  Kh8 {[%clk 0:02:18]} 24. a4 {[%clk 0:00:44]}  Qe7 {[%clk 0:02:04]} 25. Ne2 {[%clk 0:00:33]}  Rd7 {[%clk 0:01:58]} 26. Nf3 {[%clk 0:00:33]}  Rad8 {[%clk 0:01:53]} 27. Nh4 {[%clk 0:00:33]}  Qe8 {[%clk 0:01:53]} 28. Ng6+ {[%clk 0:00:33]}  Kh7 {[%clk 0:01:52]} 29. a5 {[%clk 0:00:28]}  Nc8 {[%clk 0:01:46]} 30. Rd1 {[%clk 0:00:25]}  Ne7 {[%clk 0:01:42]} 31. Nxf8+ {[%clk 0:00:24]}  Qxf8 {[%clk 0:01:42]} 32. Bxc5 {[%clk 0:00:25]}  Qf7 {[%clk 0:01:39]} 33. Rg3 {[%clk 0:00:21]}  Nc8 {[%clk 0:01:35]} 34. h4 {[%clk 0:00:20]}  Nd6 {[%clk 0:01:33]} 35. Rf1 {[%clk 0:00:17]}  Ba8 {[%clk 0:01:32]} 36. Rff3 {[%clk 0:00:17]}  Bb7 {[%clk 0:01:27]} 37. Bb6 {[%clk 0:00:17]}  Re8 {[%clk 0:01:22]} 38. Qg6+ {[%clk 0:00:16]}  Qxg6 {[%clk 0:01:20]} 39. fxg6+ {[%clk 0:00:17]}  Kg8 {[%clk 0:01:19]} 40. h5 {[%clk 0:00:18]}  Nc8 {[%clk 0:01:17]} 41. Bc5 {[%clk 0:00:17]}  Ne7 {[%clk 0:01:14]} 42. Kf2 {[%clk 0:00:16]}  Bc8 {[%clk 0:01:06]} 43. Nc3 {[%clk 0:00:16]}  Rb7 {[%clk 0:01:05]} 44. Na2 {[%clk 0:00:11]}  Be6 {[%clk 0:00:56]} 45. Nb4 {[%clk 0:00:11]}  Ra8 {[%clk 0:00:43]} 46. Re3 {[%clk 0:00:12]}  Nc8 {[%clk 0:00:25]} 47. Re1 {[%clk 0:00:09]}  Rab8 {[%clk 0:00:24]} 48. Rc1 {[%clk 0:00:09]}  bxc4 {[%clk 0:00:24]} 49. Nxc6 {[%clk 0:00:08]}  Ra8 {[%clk 0:00:18]} 50. dxc4 {[%clk 0:00:07]}  Rc7 {[%clk 0:00:18]} 51. Rd3 {[%clk 0:00:06]}  Bd7 {[%clk 0:00:06]} 52. Rcd1 {[%clk 0:00:03]}  Nd6 {[%clk 0:00:05]} 53. Rxd6 {[%clk 0:00:03]}  Rxc6 {[%clk 0:00:03]} 54. Rxd7 {[%clk 0:00:03]}  Rcc8 {[%clk 0:00:04]} 55. Rb7 {[%clk 0:00:04]}  Kh8 {[%clk 0:00:04]} 56. Rdd7 {[%clk 0:00:04]}  Rg8 {[%clk 0:00:05]} 57. Be7 {[%clk 0:00:04]}  Rae8 {[%clk 0:00:03]} 58. c5 {[%clk 0:00:04]}  Rc8 {[%clk 0:00:01]} 59. b4 {[%clk 0:00:05]}  Rce8 {[%clk 0:00:01]} 60. Kg3 {[%clk 0:00:06]}  Rc8 {[%clk 0:00:02]} 61. Bxf6 {[%clk 0:00:06]}  Rcf8 {[%clk 0:00:02]} 62. Rxg7 {[%clk 0:00:06]}  Rxg7 {[%clk 0:00:02]} 63. Bxg7+ {[%clk 0:00:06]}  Kg8 {[%clk 0:00:03]} 64. Bxf8 {[%clk 0:00:07]}  Kh8 {[%clk 0:00:02]} 65. c6 {[%clk 0:00:08]}  Kg8 {[%clk 0:00:03]} 66. Rd7 {[%clk 0:00:08]}  Kh8 {[%clk 0:00:04]} 67. c7 {[%clk 0:00:09]}  Kg8 {[%clk 0:00:05]} 68. c8=Q {[%clk 0:00:09]}  Kh8 {[%clk 0:00:06]} 69. Bg7# {[%clk 0:00:10]} 1-0


[Site "https://www.chess.com"]

[Event "Titled Tuesday Blitz August 22 Early 2023"]
[White "Javakhadze, Zurab"]
[Black "Timofeev, Artyom"]
[WhiteFideId "13603647"]
[BlackFideId "4140419"]
[WhiteElo "2715"]
[BlackElo "2852"]
[Result "0-1"]
[Round "11"]
[TimeControl "180+1"]
[Date "2023.08.22"]
[WhiteClock "0:00:36"]
[BlackClock "0:01:58"]
[Board "24"]

1. Nf3 {[%clk 0:03:00]}  Nf6 {[%clk 0:02:59]} 2. g3 {[%clk 0:03:01]}  g6 {[%clk 0:02:57]} 3. Bg2 {[%clk 0:03:01]}  Bg7 {[%clk 0:02:57]} 4. O-O {[%clk 0:03:02]}  O-O {[%clk 0:02:57]} 5. c4 {[%clk 0:03:03]}  c5 {[%clk 0:02:56]} 6. Nc3 {[%clk 0:03:03]}  Nc6 {[%clk 0:02:56]} 7. d4 {[%clk 0:03:02]}  cxd4 {[%clk 0:02:56]} 8. Nxd4 {[%clk 0:03:03]}  Ng4 {[%clk 0:02:56]} 9. e3 {[%clk 0:02:59]}  d6 {[%clk 0:02:57]} 10. Nxc6 {[%clk 0:02:52]}  bxc6 {[%clk 0:02:56]} 11. Bxc6 {[%clk 0:02:30]}  Rb8 {[%clk 0:02:56]} 12. Qa4 {[%clk 0:02:31]}  Ne5 {[%clk 0:02:44]} 13. Bg2 {[%clk 0:02:28]}  Bd7 {[%clk 0:02:42]} 14. Qxa7 {[%clk 0:02:19]}  Nxc4 {[%clk 0:02:42]} 15. Nd5 {[%clk 0:02:11]}  e6 {[%clk 0:02:38]} 16. Nf4 {[%clk 0:02:03]}  d5 {[%clk 0:02:38]} 17. Rb1 {[%clk 0:02:02]}  Ra8 {[%clk 0:02:36]} 18. Qc5 {[%clk 0:02:01]}  Rxa2 {[%clk 0:02:32]} 19. b3 {[%clk 0:02:01]}  Ne5 {[%clk 0:02:26]} 20. Bb2 {[%clk 0:01:22]}  Qb8 {[%clk 0:02:19]} 21. Bxe5 {[%clk 0:01:18]}  Bxe5 {[%clk 0:02:17]} 22. Nd3 {[%clk 0:01:19]}  Bd6 {[%clk 0:02:08]} 23. Qd4 {[%clk 0:01:17]}  Bb5 {[%clk 0:02:08]} 24. Rfd1 {[%clk 0:01:16]}  Rc8 {[%clk 0:02:07]} 25. e4 {[%clk 0:01:14]}  Rcc2 {[%clk 0:02:03]} 26. exd5 {[%clk 0:01:09]}  e5 {[%clk 0:01:59]} 27. Qe3 {[%clk 0:00:36]}  Bxd3 {[%clk 0:01:58]} 0-1


[Site "https://www.chess.com"]

[Event "Titled Tuesday Blitz August 22 Early 2023"]
[White "Klukin, Kirill"]
[Black "Yelisieiev, Yevhenii"]
[WhiteFideId "24199273"]
[BlackFideId "14139642"]
[WhiteElo "2831"]
[BlackElo "2591"]
[Result "1-0"]
[Round "11"]
[TimeControl "180+1"]
[Date "2023.08.22"]
[WhiteClock "0:01:25"]
[BlackClock "0:00:29"]
[Board "26"]

1. d4 {[%clk 0:03:00]}  d6 {[%clk 0:03:00]} 2. Nf3 {[%clk 0:03:00]}  Nf6 {[%clk 0:03:00]} 3. e3 {[%clk 0:02:59]}  Nbd7 {[%clk 0:03:01]} 4. c4 {[%clk 0:02:57]}  e5 {[%clk 0:03:01]} 5. Nc3 {[%clk 0:02:58]}  Be7 {[%clk 0:03:01]} 6. Be2 {[%clk 0:02:58]}  O-O {[%clk 0:03:02]} 7. O-O {[%clk 0:02:59]}  c6 {[%clk 0:03:02]} 8. b4 {[%clk 0:02:59]}  e4 {[%clk 0:03:01]} 9. Nd2 {[%clk 0:02:59]}  d5 {[%clk 0:03:01]} 10. b5 {[%clk 0:02:59]}  a6 {[%clk 0:02:58]} 11. bxc6 {[%clk 0:02:59]}  bxc6 {[%clk 0:02:58]} 12. cxd5 {[%clk 0:03:00]}  cxd5 {[%clk 0:02:59]} 13. a4 {[%clk 0:02:55]}  a5 {[%clk 0:02:58]} 14. Ba3 {[%clk 0:02:55]}  Bb4 {[%clk 0:02:54]} 15. Bxb4 {[%clk 0:02:51]}  axb4 {[%clk 0:02:55]} 16. Nb5 {[%clk 0:02:52]}  Qe7 {[%clk 0:02:37]} 17. Qb3 {[%clk 0:02:49]}  Nb6 {[%clk 0:02:30]} 18. Rfb1 {[%clk 0:02:45]}  Bg4 {[%clk 0:02:27]} 19. Bxg4 {[%clk 0:02:40]}  Nxg4 {[%clk 0:02:28]} 20. h3 {[%clk 0:02:32]}  Nh6 {[%clk 0:02:19]} 21. a5 {[%clk 0:02:28]}  Nd7 {[%clk 0:02:10]} 22. Nc7 {[%clk 0:02:20]}  Rab8 {[%clk 0:02:06]} 23. Nxd5 {[%clk 0:02:20]}  Qh4 {[%clk 0:01:47]} 24. a6 {[%clk 0:02:09]}  g5 {[%clk 0:01:31]} 25. a7 {[%clk 0:02:06]}  Ra8 {[%clk 0:01:30]} 26. Qa4 {[%clk 0:01:51]}  Rfd8 {[%clk 0:01:24]} 27. Qxb4 {[%clk 0:01:43]}  g4 {[%clk 0:01:21]} 28. Qe7 {[%clk 0:01:43]}  f6 {[%clk 0:01:00]} 29. Nxe4 {[%clk 0:01:41]}  Nf5 {[%clk 0:00:50]} 30. Qe6+ {[%clk 0:01:38]}  Kh8 {[%clk 0:00:49]} 31. Qxf5 {[%clk 0:01:38]}  gxh3 {[%clk 0:00:49]} 32. Qf4 {[%clk 0:01:23]}  Qh5 {[%clk 0:00:42]} 33. Ndxf6 {[%clk 0:01:23]}  Nxf6 {[%clk 0:00:41]} 34. Qxf6+ {[%clk 0:01:23]}  Kg8 {[%clk 0:00:39]} 35. Qg5+ {[%clk 0:01:23]}  Qxg5 {[%clk 0:00:37]} 36. Nxg5 {[%clk 0:01:24]}  hxg2 {[%clk 0:00:29]} 37. Kxg2 {[%clk 0:01:25]} 1-0


[Site "https://www.chess.com"]

[Event "Titled Tuesday Blitz August 22 Early 2023"]
[White "Gontcharov, Vladislav"]
[Black "Bauman_Guy"]
[WhiteFideId "4123492"]
[WhiteElo "2590"]
[BlackElo "2817"]
[Result "1-0"]
[Round "11"]
[TimeControl "180+1"]
[Date "2023.08.22"]
[WhiteClock "0:00:13"]
[BlackClock "0:00:25"]
[Board "27"]

1. d4 {[%clk 0:03:00]}  Nf6 {[%clk 0:02:59]} 2. c4 {[%clk 0:03:00]}  b6 {[%clk 0:02:59]} 3. Nf3 {[%clk 0:02:56]}  Bb7 {[%clk 0:02:59]} 4. d5 {[%clk 0:02:56]}  e6 {[%clk 0:02:59]} 5. Nc3 {[%clk 0:02:52]}  Bb4 {[%clk 0:02:58]} 6. Bg5 {[%clk 0:02:35]}  h6 {[%clk 0:02:56]} 7. Bh4 {[%clk 0:02:32]}  g5 {[%clk 0:02:57]} 8. Bg3 {[%clk 0:02:32]}  Ne4 {[%clk 0:02:56]} 9. Qd4 {[%clk 0:02:26]}  O-O {[%clk 0:02:05]} 10. Qxe4 {[%clk 0:02:22]}  f5 {[%clk 0:02:05]} 11. Qc2 {[%clk 0:02:11]}  Na6 {[%clk 0:02:01]} 12. e3 {[%clk 0:01:59]}  Nc5 {[%clk 0:01:59]} 13. Bd3 {[%clk 0:01:50]}  Qf6 {[%clk 0:01:28]} 14. Bxc7 {[%clk 0:01:39]}  Rac8 {[%clk 0:01:27]} 15. Be5 {[%clk 0:01:38]}  Qe7 {[%clk 0:01:26]} 16. d6 {[%clk 0:01:22]}  Qf7 {[%clk 0:01:25]} 17. a3 {[%clk 0:01:21]}  Bxc3+ {[%clk 0:01:22]} 18. Bxc3 {[%clk 0:01:18]}  g4 {[%clk 0:01:17]} 19. Ne5 {[%clk 0:01:18]}  Qh5 {[%clk 0:01:16]} 20. Bf1 {[%clk 0:01:02]}  Be4 {[%clk 0:01:16]} 21. Qd1 {[%clk 0:01:00]}  f4 {[%clk 0:01:16]} 22. Qxg4+ {[%clk 0:00:57]}  Qxg4 {[%clk 0:01:15]} 23. Nxg4 {[%clk 0:00:58]}  Nb3 {[%clk 0:01:16]} 24. Rd1 {[%clk 0:00:56]}  fxe3 {[%clk 0:01:17]} 25. Nxe3 {[%clk 0:00:55]}  Rf4 {[%clk 0:01:10]} 26. Be2 {[%clk 0:00:54]}  Rcf8 {[%clk 0:01:10]} 27. f3 {[%clk 0:00:54]}  Bc6 {[%clk 0:01:09]} 28. Kf2 {[%clk 0:00:52]}  Nc5 {[%clk 0:01:10]} 29. Rd4 {[%clk 0:00:43]}  Ne4+ {[%clk 0:01:07]} 30. Ke1 {[%clk 0:00:43]}  Nxc3 {[%clk 0:01:05]} 31. Rxf4 {[%clk 0:00:43]}  Rxf4 {[%clk 0:01:05]} 32. bxc3 {[%clk 0:00:42]}  h5 {[%clk 0:01:03]} 33. Kf2 {[%clk 0:00:40]}  h4 {[%clk 0:01:02]} 34. Rd1 {[%clk 0:00:39]}  e5 {[%clk 0:01:01]} 35. Ng4 {[%clk 0:00:29]}  e4 {[%clk 0:00:55]} 36. Ke3 {[%clk 0:00:29]}  Rf8 {[%clk 0:00:51]} 37. fxe4 {[%clk 0:00:29]}  Ba4 {[%clk 0:00:52]} 38. Rf1 {[%clk 0:00:28]}  Rc8 {[%clk 0:00:52]} 39. Nf6+ {[%clk 0:00:26]}  Kg7 {[%clk 0:00:51]} 40. Nd5 {[%clk 0:00:26]}  Rc6 {[%clk 0:00:50]} 41. e5 {[%clk 0:00:26]}  Rc5 {[%clk 0:00:49]} 42. Kd4 {[%clk 0:00:25]}  Bc6 {[%clk 0:00:49]} 43. Bd1 {[%clk 0:00:20]}  Ra5 {[%clk 0:00:49]} 44. a4 {[%clk 0:00:20]}  Kg6 {[%clk 0:00:48]} 45. Rf4 {[%clk 0:00:19]}  a6 {[%clk 0:00:42]} 46. Rxh4 {[%clk 0:00:18]}  b5 {[%clk 0:00:42]} 47. cxb5 {[%clk 0:00:18]}  axb5 {[%clk 0:00:43]} 48. axb5 {[%clk 0:00:19]}  Rxb5 {[%clk 0:00:43]} 49. c4 {[%clk 0:00:17]}  Rb1 {[%clk 0:00:44]} 50. Bf3 {[%clk 0:00:17]}  Kg5 {[%clk 0:00:43]} 51. Rg4+ {[%clk 0:00:17]}  Kh6 {[%clk 0:00:42]} 52. Rg8 {[%clk 0:00:15]}  Rb2 {[%clk 0:00:39]} 53. Rf8 {[%clk 0:00:14]}  Rd2+ {[%clk 0:00:39]} 54. Ke3 {[%clk 0:00:15]}  Rb2 {[%clk 0:00:39]} 55. Rf6+ {[%clk 0:00:14]}  Kg7 {[%clk 0:00:39]} 56. g3 {[%clk 0:00:14]}  Rb3+ {[%clk 0:00:38]} 57. Kd4 {[%clk 0:00:15]}  Rb2 {[%clk 0:00:37]} 58. g4 {[%clk 0:00:14]}  Rd2+ {[%clk 0:00:37]} 59. Ke3 {[%clk 0:00:14]}  Rxh2 {[%clk 0:00:38]} 60. g5 {[%clk 0:00:13]}  Rb2 {[%clk 0:00:37]} 61. e6 {[%clk 0:00:13]}  Rb3+ {[%clk 0:00:34]} 62. Kf4 {[%clk 0:00:12]}  dxe6 {[%clk 0:00:35]} 63. Rxe6 {[%clk 0:00:12]}  Kf7 {[%clk 0:00:35]} 64. Re7+ {[%clk 0:00:12]}  Kf8 {[%clk 0:00:34]} 65. g6 {[%clk 0:00:13]}  Kg8 {[%clk 0:00:25]} 66. Nf6+ {[%clk 0:00:13]} 1-0


[Site "https://www.chess.com"]

[Event "Titled Tuesday Blitz August 22 Early 2023"]
[White "Zemlyanskii, Ivan"]
[Black "Nasir, Zehn"]
[WhiteFideId "24249971"]
[BlackFideId "2613239"]
[WhiteElo "2848"]
[BlackElo "2665"]
[Result "0-1"]
[Round "11"]
[TimeControl "180+1"]
[Date "2023.08.22"]
[WhiteClock "0:00:00"]
[BlackClock "0:00:35"]
[Board "33"]

1. d4 {[%clk 0:03:00]}  Nf6 {[%clk 0:02:59]} 2. c4 {[%clk 0:03:01]}  c5 {[%clk 0:02:59]} 3. d5 {[%clk 0:03:01]}  e6 {[%clk 0:02:59]} 4. Bf4 {[%clk 0:03:01]}  exd5 {[%clk 0:02:58]} 5. cxd5 {[%clk 0:03:02]}  d6 {[%clk 0:02:57]} 6. e4 {[%clk 0:03:02]}  a6 {[%clk 0:02:51]} 7. Bd3 {[%clk 0:02:50]}  b5 {[%clk 0:02:47]} 8. Nc3 {[%clk 0:02:50]}  Nbd7 {[%clk 0:02:40]} 9. Nf3 {[%clk 0:02:49]}  g6 {[%clk 0:02:39]} 10. h3 {[%clk 0:02:39]}  Qe7 {[%clk 0:02:36]} 11. O-O {[%clk 0:02:35]}  Nh5 {[%clk 0:02:30]} 12. Bh2 {[%clk 0:02:26]}  Bg7 {[%clk 0:02:12]} 13. g4 {[%clk 0:01:42]}  b4 {[%clk 0:02:11]} 14. Na4 {[%clk 0:01:24]}  Nhf6 {[%clk 0:02:10]} 15. Re1 {[%clk 0:01:22]}  O-O {[%clk 0:01:53]} 16. b3 {[%clk 0:01:17]}  Ne8 {[%clk 0:01:45]} 17. Rb1 {[%clk 0:01:15]}  Ne5 {[%clk 0:01:44]} 18. Nb2 {[%clk 0:01:09]}  h5 {[%clk 0:01:36]} 19. Nxe5 {[%clk 0:00:38]}  Bxe5 {[%clk 0:01:35]} 20. Bxe5 {[%clk 0:00:33]}  Qxe5 {[%clk 0:01:34]} 21. Qe2 {[%clk 0:00:24]}  hxg4 {[%clk 0:01:30]} 22. hxg4 {[%clk 0:00:25]}  Qf4 {[%clk 0:01:29]} 23. f3 {[%clk 0:00:25]}  Kg7 {[%clk 0:01:25]} 24. Nc4 {[%clk 0:00:25]}  Rh8 {[%clk 0:01:11]} 25. Qg2 {[%clk 0:00:15]}  Rh4 {[%clk 0:01:07]} 26. Be2 {[%clk 0:00:11]}  Bd7 {[%clk 0:01:03]} 27. Bd1 {[%clk 0:00:03]}  Bb5 {[%clk 0:01:02]} 28. Ne3 {[%clk 0:00:02]}  Nf6 {[%clk 0:00:59]} 29. Rb2 {[%clk 0:00:02]}  Rah8 {[%clk 0:00:58]} 30. Rd2 {[%clk 0:00:01]}  a5 {[%clk 0:00:38]} 31. Be2 {[%clk 0:00:01]}  Qxe3+ {[%clk 0:00:37]} 32. Qf2 {[%clk 0:00:00]}  Rh1+ {[%clk 0:00:35]} 0-1


[Site "https://www.chess.com"]